fUST/lending_fUST_20250619
["ID","MTS","AMOUNT","RATE_DAILY","PERIOD"]
[366472798,1750276248061,-460.0,0.00023013,6]
[366472799,1750276248071,-460.0,0.00023013,6]
[366472800,1750276248081,-468.05,0.00023013,6]
[366472801,1750276248091,-460.0,0.00023013,6]
[366472802,1750276248100,-460.0,0.00023013,6]
[366472803,1750276248110,-460.0,0.00023013,6]
[366472804,1750276248119,-460.0,0.00023013,6]
[366472805,1750276248128,-460.0,0.00023013,6]
[366472806,1750276248139,-2680.33,0.00023013,6]
[366472807,1750276248149,-460.0,0.00023013,6]
[366472808,1750276248160,-460.0,0.00023013,6]
[366472809,1750276248169,-1716.89,0.00023013,6]
[366472810,1750276248180,-745.9,0.00023013,6]
[366472811,1750276248190,-460.0,0.00023013,6]
[366472812,1750276248199,-460.0,0.00023013,6]
[366472813,1750276248209,-440.0,0.00023013,6]
[366472814,1750276248219,-1572.4,0.00023013,6]
[366472815,1750276248229,-460.0,0.00023013,6]
[366472816,1750276248239,-460.0,0.00023013,6]
[366472817,1750276248249,-574.06,0.00023013,6]
[366472818,1750276248258,-511.68,0.00023013,6]
[366472819,1750276248268,-3015.37,0.00023013,6]
[366472820,1750276248280,-2284.2,0.00023013,6]
[366472821,1750276248290,-1316.23,0.00023013,6]
[366472822,1750276248299,-460.0,0.00023013,6]
[366472823,1750276248308,-460.0,0.00023013,6]
[366472824,1750276248318,-460.0,0.00023013,6]
[366472825,1750276248328,-460.0,0.00023013,6]
[366472826,1750276248337,-481.69,0.00023013,6]
[366472827,1750276248346,-1203.33,0.00023013,6]
[366472828,1750276248355,-460.0,0.00023013,6]
[366472829,1750276248364,-547.98005441,0.00023013,6]
[366472830,1750276248374,-460.0,0.00023013,6]
[366472831,1750276248485,-460.0,0.00023013,6]
[366472832,1750276248496,-460.0,0.00023013,6]
[366472833,1750276248507,-460.0,0.00023013,6]
[366472834,1750276248517,-460.0,0.00023013,6]
[366472835,1750276248528,-460.0,0.00023013,6]
[366472836,1750276248538,-460.0,0.00023013,6]
[366472837,1750276248548,-460.0,0.00023013,6]
[366472838,1750276248558,-546.39,0.00023013,6]
[366472839,1750276248568,-460.0,0.00023013,6]
[366472840,1750276248579,-840.0,0.00023013,6]
[366472841,1750276248589,-460.0,0.00023013,6]
[366472842,1750276248599,-460.0,0.00023013,6]
[366472843,1750276248607,-460.0,0.00023013,6]
[366472844,1750276248617,-460.0,0.00023013,6]
[366472845,1750276248626,-1043.62,0.00023013,6]
[366472846,1750276248635,-460.0,0.00023013,6]
[366472847,1750276248647,-460.0,0.00023013,6]
[366472848,1750276248656,-460.0,0.00023013,6]
[366472849,1750276248666,-488.87,0.00023013,6]
[366472850,1750276248676,-460.0,0.00023013,6]
[366472851,1750276248686,-1585.52,0.00023013,6]
[366472852,1750276248695,-460.0,0.00023013,6]
[366472853,1750276248705,-460.0,0.00023013,6]
[366472854,1750276248715,-904.19,0.00023013,6]
[366472855,1750276248725,-886.21,0.00023013,6]
[366472856,1750276248734,-1038.82,0.00023013,6]
[366472857,1750276248744,-897.63,0.00023013,6]
[366472858,1750276248754,-460.0,0.00023013,6]
[366472859,1750276248764,-460.0,0.00023013,6]
[366472860,1750276248773,-460.0,0.00023013,6]
[366472861,1750276248783,-460.0,0.00023013,6]
[366472862,1750276248792,-460.0,0.00023013,6]
[366472863,1750276248801,-283.98719117,0.00023013,6]
[366472864,1750276248811,-4076.27,0.00023013,6]
[366472865,1750276248821,-460.0,0.00023013,6]
[366472866,1750276248831,-460.0,0.00023013,6]
[366472867,1750276248840,-460.0,0.00023013,6]
[366472868,1750276248850,-572.57,0.00023013,6]
[366472869,1750276248859,-505.95,0.00023013,6]
[366472870,1750276248869,-460.0,0.00023013,6]
[366472871,1750276248878,-2858.76,0.00023013,6]
[366472872,1750276248887,-2067.51,0.00023013,6]
[366472873,1750276248897,-460.0,0.00023013,6]
[366472874,1750276248906,-460.0,0.00023013,6]
[366472875,1750276248916,-460.0,0.00023013,6]
[366472876,1750276248925,-460.0,0.00023013,6]
[366472877,1750276248934,-460.0,0.00023013,6]
[366472878,1750276248944,-941.34,0.00023013,6]
[366472879,1750276248954,-500.0,0.00023013,6]
[366472880,1750276248964,-151.0,0.00023013,6]
[366472881,1750276248973,-270.39097839,0.00023013,6]
[366472882,1750276248983,-500.0,0.00023041,6]
[366472883,1750276248992,-545.43614523,0.00023068,6]
[366472884,1750276249002,-1500.0,0.00023068,2]
[366472885,1750276249012,-500.0,0.00023068,2]
[366472886,1750276249021,-1504.25083734,0.00023068,2]
[366472887,1750276249030,-1000.0,0.00023068,2]
[366472888,1750276249039,-1500.0,0.00023068,2]
[366472889,1750276249049,-489.58,0.000231,3]
[366472890,1750276249058,-320.26,0.000231,3]
[366472891,1750276249067,-640.52,0.000231,3]
[366472892,1750276249076,-320.26,0.000231,3]
[366472893,1750276249086,-82816.0,0.000231,7]
[366472894,1750276249095,-258.8294469,0.00023129,2]
[366472895,1750276249104,-500.0,0.00023129,2]
[366472896,1750276249113,-500.0,0.00023129,2]
[366472897,1750276249123,-516.47411252,0.00023129,2]
[366472898,1750276249132,-500.0,0.00023129,2]
[366472899,1750276249142,-1164.62054144,0.00023141,8]
[366472900,1750276249152,-500.0,0.00023167,2]
[366472901,1750276249160,-500.31929836,0.00023167,2]
[366472902,1750276249170,-500.0,0.00023191,2]
[366472903,1750276249179,-584.68,0.00023212,3]
[366472904,1750276249189,-8482.18123407,0.00023229,2]
[366472905,1750276249199,-5000.0,0.00023253,2]
[366472906,1750276249209,-168.0,0.00023274,2]
[366472907,1750276249219,-1241.94,0.00023277,3]
[366472908,1750276249229,-620.98,0.00023277,3]
[366472909,1750276249239,-310.48,0.00023277,3]
[366472910,1750276249249,-12542.39314967,0.00023277,3]
[366472911,1750276249259,-835.98428123,0.00023277,3]
[366472912,1750276249269,-472.58,0.00023277,3]
[366472913,1750276249279,-229.98435572,0.00023277,3]
[366472914,1750276249289,-160.0,0.0002328,3]
[366472915,1750276249299,-429.17624785,0.00023286,2]
[366472916,1750276249309,-460.0,0.00023287,6]
[366472917,1750276249319,-460.0,0.00023287,6]
[366472918,1750276249328,-460.0,0.00023287,6]
[366472919,1750276249338,-460.0,0.00023287,6]
[366472920,1750276249347,-460.0,0.00023287,6]
[366472921,1750276249357,-290.0,0.00023287,6]
[366472922,1750276249366,-546.26,0.00023287,6]
[366472923,1750276249376,-460.0,0.00023287,6]
[366472924,1750276249386,-460.0,0.00023287,6]
[366472925,1750276249398,-468.05,0.00023287,6]
[366472926,1750276249408,-433.53863405,0.00023287,6]
[366472927,1750276249422,-420.0,0.00023287,6]
[366472928,1750276249432,-460.0,0.00023287,6]
[366472929,1750276249440,-460.0,0.00023287,6]
[366472930,1750276249449,-460.0,0.00023287,6]
[366472931,1750276249459,-2680.33,0.00023287,6]
[366472932,1750276249468,-460.0,0.00023287,6]
[366472933,1750276249478,-1716.89,0.00023287,6]
[366472934,1750276249488,-745.9,0.00023287,6]
[366472935,1750276249499,-460.0,0.00023287,6]
[366472936,1750276249509,-1572.4,0.00023287,6]
[366472937,1750276249519,-460.0,0.00023287,6]
[366472938,1750276249528,-460.0,0.00023287,6]
[366472939,1750276249537,-574.06,0.00023287,6]
[366472940,1750276249546,-511.68,0.00023287,6]
[366472941,1750276249555,-3015.37,0.00023287,6]
[366472942,1750276249564,-2284.2,0.00023287,6]
[366472943,1750276249574,-1316.23,0.00023287,6]
[366472944,1750276249583,-460.0,0.00023287,6]
[366472945,1750276249591,-460.0,0.00023287,6]
[366472946,1750276249601,-500.14368675,0.00023287,6]
[366472947,1750276249610,-460.0,0.00023287,6]
[366472948,1750276249619,-481.69,0.00023287,6]
[366472949,1750276249629,-1203.33,0.00023287,6]
[366472950,1750276249638,-460.0,0.00023287,6]
[366472951,1750276249648,-460.0,0.00023287,6]
[366472952,1750276249657,-460.0,0.00023287,6]
[366472953,1750276249666,-460.0,0.00023287,6]
[366472954,1750276249675,-460.0,0.00023287,6]
[366472955,1750276249685,-460.0,0.00023287,6]
[366472956,1750276249694,-460.0,0.00023287,6]
[366472957,1750276249703,-460.0,0.00023287,6]
[366472958,1750276249712,-546.39,0.00023287,6]
[366472959,1750276249721,-460.0,0.00023287,6]
[366472960,1750276249730,-840.0,0.00023287,6]
[366472961,1750276249739,-562.02262923,0.00023287,6]
[366472962,1750276249748,-478.70198757,0.00023287,6]
[366472963,1750276249758,-1043.62,0.00023287,6]
[366472964,1750276249767,-460.0,0.00023287,6]
[366472965,1750276249776,-460.0,0.00023287,6]
[366472966,1750276249785,-460.0,0.00023287,6]
[366472967,1750276249795,-488.87,0.00023287,6]
[366472968,1750276249804,-460.0,0.00023287,6]
[366472969,1750276249813,-1585.52,0.00023287,6]
[366472970,1750276249822,-460.0,0.00023287,6]
[366472971,1750276249832,-460.0,0.00023287,6]
[366472972,1750276249841,-904.19,0.00023287,6]
[366472973,1750276249850,-886.21,0.00023287,6]
[366472974,1750276249860,-1038.82,0.00023287,6]
[366472975,1750276249869,-897.63,0.00023287,6]
[366472976,1750276249878,-460.0,0.00023287,6]
[366472977,1750276249888,-460.0,0.00023287,6]
[366472978,1750276249899,-460.0,0.00023287,6]
[366472979,1750276249908,-460.0,0.00023287,6]
[366472980,1750276249918,-4076.27,0.00023287,6]
[366472981,1750276249927,-460.0,0.00023287,6]
[366472982,1750276249936,-460.0,0.00023287,6]
[366472983,1750276249946,-430.0,0.00023287,6]
[366472984,1750276249955,-572.57,0.00023287,6]
[366472985,1750276249965,-505.95,0.00023287,6]
[366472986,1750276249974,-440.0,0.00023287,6]
[366472987,1750276249983,-2858.76,0.00023287,6]
[366472988,1750276249992,-2067.51,0.00023287,6]
[366472989,1750276250001,-487.9,0.00023287,6]
[366472990,1750276250010,-460.0,0.00023287,6]
[366472991,1750276250019,-460.0,0.00023287,6]
[366472992,1750276250029,-941.34,0.00023287,6]
[366472993,1750276250038,-1000.0,0.000233,2]
[366472994,1750276250047,-500.0,0.00023305,2]
[366472995,1750276250056,-1164.62054144,0.00023314,9]
[366472996,1750276250066,-429.17624785,0.00023314,2]
[366472997,1750276250075,-321001.32334315,0.00023325,2]
[366472998,1750276250084,-500.0,0.00023347,2]
[366472999,1750276250092,-500.0,0.00023373,2]
[366473000,1750276250102,-500.0,0.00023373,2]
[366473001,1750276250111,-500.0,0.00023373,2]
[366473002,1750276250120,-500.0,0.00023373,2]
[366473003,1750276250130,-500.0,0.00023373,2]
[366473004,1750276250140,-500.0,0.00023373,2]
[366473005,1750276250150,-500.0,0.00023373,2]
[366473006,1750276250159,-500.0,0.00023373,2]
[366473007,1750276250168,-500.0,0.00023373,2]
[366473008,1750276250177,-500.0,0.00023373,2]
[366473009,1750276250186,-516.2677161,0.00023373,2]
[366473010,1750276250195,-502.19345932,0.00023373,2]
[366473011,1750276250205,-500.0,0.00023373,2]
[366473012,1750276250215,-500.0,0.00023373,2]
[366473013,1750276250225,-500.0,0.00023373,2]
[366473014,1750276250234,-501.26660304,0.00023373,2]
[366473015,1750276250243,-500.0,0.00023373,2]
[366473016,1750276250253,-500.0,0.00023373,2]
[366473017,1750276250262,-516.93256002,0.00023373,2]
[366473018,1750276250272,-500.0,0.00023373,2]
[366473019,1750276250281,-500.0,0.00023373,2]
[366473020,1750276250290,-502.62722475,0.00023373,2]
[366473021,1750276250299,-335.88837023,0.00023373,2]
[366473022,1750276250309,-500.0,0.00023373,2]
[366473023,1750276250318,-636.55493512,0.00023373,2]
[366473024,1750276250327,-171.93704771,0.00023373,2]
[366473025,1750276250336,-600.0,0.00023373,2]
[366473026,1750276250345,-500.0,0.00023373,2]
[366473027,1750276250355,-336.9302654,0.00023373,2]
[366473028,1750276250363,-500.0,0.00023373,2]
[366473029,1750276250373,-1662.481383,0.00023412,3]
[366473030,1750276250383,-3661.44,0.00023447,2]
[366473031,1750276250392,-500.0,0.00023472,2]
[366473032,1750276250402,-1164.62054144,0.00023486,9]
[366473033,1750276250411,-1655.5,0.000235,4]
[366473034,1750276250424,-2000.0,0.000235,4]
[366473035,1750276250434,-663.19,0.000235,7]
[366473036,1750276250442,-12542.39314967,0.000235,7]
[366473037,1750276250452,-168.0,0.00023516,2]
[366473038,1750276250463,-153.0,0.00023534,2]
[366473039,1750276250472,-153.0,0.00023534,2]
[366473040,1750276250481,-153.0,0.00023534,2]
[366473041,1750276250491,-153.0,0.00023534,2]
[366473042,1750276250500,-153.0,0.00023534,2]
[366473043,1750276250509,-177.1504183,0.00023534,2]
[366473044,1750276250519,-153.0,0.00023534,2]
[366473045,1750276250528,-574.2153043,0.00023534,2]
[366473046,1750276250537,-458.5144014,0.00023534,2]
[366473047,1750276250546,-460.0,0.00023561,6]
[366473048,1750276250555,-460.0,0.00023561,6]
[366473049,1750276250563,-460.0,0.00023561,6]
[366473050,1750276250573,-460.0,0.00023561,6]
[366473051,1750276250582,-460.0,0.00023561,6]
[366473052,1750276250683,-546.26,0.00023561,6]
[366473053,1750276250693,-172.73789887,0.00023561,6]
[366473054,1750276250702,-460.0,0.00023561,6]
[366473055,1750276250711,-468.05,0.00023561,6]
[366473056,1750276250721,-237.04,0.00023561,6]
[366473057,1750276250730,-460.0,0.00023561,6]
[366473058,1750276250739,-460.0,0.00023561,6]
[366473059,1750276250749,-2680.33,0.00023561,6]
[366473060,1750276250758,-460.0,0.00023561,6]
[366473061,1750276250767,-1716.89,0.00023561,6]
[366473062,1750276250776,-745.9,0.00023561,6]
[366473063,1750276250785,-460.0,0.00023561,6]
[366473064,1750276250795,-1572.4,0.00023561,6]
[366473065,1750276250804,-460.0,0.00023561,6]
[366473066,1750276250813,-213.46632108,0.00023561,6]
[366473067,1750276250822,-574.06,0.00023561,6]
[366473068,1750276250831,-511.68,0.00023561,6]
[366473069,1750276250841,-3015.37,0.00023561,6]
[366473070,1750276250850,-2284.2,0.00023561,6]
[366473071,1750276250859,-1316.23,0.00023561,6]
[366473072,1750276250869,-460.0,0.00023561,6]
[366473073,1750276250878,-460.0,0.00023561,6]
[366473074,1750276250887,-481.69,0.00023561,6]
[366473075,1750276250896,-1203.33,0.00023561,6]
[366473076,1750276250906,-460.0,0.00023561,6]
[366473077,1750276250916,-460.0,0.00023561,6]
[366473078,1750276250925,-460.0,0.00023561,6]
[366473079,1750276250934,-309.44195837,0.00023561,6]
[366473080,1750276250944,-430.0,0.00023561,6]
[366473081,1750276250953,-460.0,0.00023561,6]
[366473082,1750276250963,-304.78658478,0.00023561,6]
[366473083,1750276250972,-546.39,0.00023561,6]
[366473084,1750276250982,-840.0,0.00023561,6]
[366473085,1750276250991,-1043.62,0.00023561,6]
[366473086,1750276251000,-460.0,0.00023561,6]
[366473087,1750276251010,-460.0,0.00023561,6]
[366473088,1750276251019,-460.0,0.00023561,6]
[366473089,1750276251029,-488.87,0.00023561,6]
[366473090,1750276251038,-460.0,0.00023561,6]
[366473091,1750276251048,-1585.52,0.00023561,6]
[366473092,1750276251058,-460.0,0.00023561,6]
[366473093,1750276251067,-904.19,0.00023561,6]
[366473094,1750276251076,-886.21,0.00023561,6]
[366473095,1750276251086,-1038.82,0.00023561,6]
[366473096,1750276251096,-897.63,0.00023561,6]
[366473097,1750276251105,-460.0,0.00023561,6]
[366473098,1750276251115,-460.0,0.00023561,6]
[366473099,1750276251124,-460.0,0.00023561,6]
[366473100,1750276251134,-460.0,0.00023561,6]
[366473101,1750276251144,-4076.27,0.00023561,6]
[366473102,1750276251154,-460.0,0.00023561,6]
[366473103,1750276251163,-460.0,0.00023561,6]
[366473104,1750276251172,-572.57,0.00023561,6]
[366473105,1750276251181,-505.95,0.00023561,6]
[366473106,1750276251191,-2858.76,0.00023561,6]
[366473107,1750276251201,-2067.51,0.00023561,6]
[366473108,1750276251211,-460.0,0.00023561,6]
[366473109,1750276251221,-941.34,0.00023561,6]
[366473110,1750276251231,-500.0,0.00023581,2]
[366473111,1750276251240,-800.0,0.00023586,2]
[366473112,1750276251250,-2000.0,0.000236,4]
[366473113,1750276251259,-1000.0,0.00023616,2]
[366473114,1750276251270,-1164.62054144,0.00023659,9]
[366473115,1750276251279,-500.0,0.00023677,2]
[366473116,1750276251289,-1000.0,0.00023677,2]
[366473117,1750276251298,-1013.82596414,0.00023677,2]
[366473118,1750276251308,-682.46441178,0.00023699,2]
[366473119,1750276251318,-2000.0,0.000237,4]
[366473120,1750276251327,-168.17519988,0.000237,2]
[366473121,1750276251337,-8482.18123407,0.000237,2]
[366473122,1750276251346,-1713.2244283,0.000237,2]
[366473123,1750276251355,-160.61420732,0.00023703,5]
[366473124,1750276251365,-188.27130948,0.00023717,2]
[366473125,1750276251375,-429.17624789,0.00023735,2]
[366473126,1750276251384,-800.0,0.00023768,2]
[366473127,1750276251393,-964.0,0.00023771,2]
[366473128,1750276251402,-2160.0,0.00023771,2]
[366473129,1750276251411,-653.0,0.00023771,2]
[366473130,1750276251424,-406.0,0.00023771,2]
[366473131,1750276251434,-502.8076874,0.00023773,2]
[366473132,1750276251443,-501.1678591,0.00023773,2]
[366473133,1750276251452,-64029.20603124,0.00023788,2]
[366473134,1750276251463,-1706.6,0.000238,2]
[366473135,1750276251472,-29122.2164566,0.000238,4]
[366473136,1750276251955,-2.55839704,0.00021907,10]
[366473137,1750276251967,-237.97160296,0.00021907,10]
[366473138,1750276251978,-460.0,0.00021917,6]
[366473139,1750276251987,-460.0,0.00021917,2]
[366473140,1750276251996,-460.0,0.00021917,6]
[366473141,1750276252008,-460.0,0.00021917,6]
[366473142,1750276252019,-460.0,0.00021917,6]
[366473143,1750276252028,-460.0,0.00021917,6]
[366473144,1750276252039,-188.75,0.00021917,2]
[366473145,1750276252048,-442.24541777,0.00021917,6]
[366473146,1750276252058,-430.0,0.00022191,6]
[366473147,1750276252067,-460.0,0.00022191,2]
[366473148,1750276252077,-460.0,0.00022191,6]
[366473149,1750276252086,-460.0,0.00022191,6]
[366473150,1750276252095,-460.0,0.00022191,6]
[366473151,1750276252104,-176.75713331,0.00022191,6]
[366473152,1750276252115,-460.0,0.00022465,2]
[366473153,1750276252124,-407.91,0.00022465,6]
[366473154,1750276252134,-460.0,0.00022465,6]
[366473155,1750276252143,-460.0,0.00022739,2]
[366473156,1750276252153,-460.0,0.00022739,6]
[366473157,1750276252163,-460.0,0.00023013,2]
[366473158,1750276252173,-219.11,0.00023013,6]
[366473159,1750276252182,-460.0,0.00023287,2]
[366473160,1750276252191,-152.736,0.00023771,2]
[366473161,1750276252200,-5966.747196,0.000238,4]
[366473162,1750276276495,339.89,0.00018524,2]
[366473164,1750276359122,269.499731,0.00013699,2]
[366473165,1750276359397,335.56,0.00018339,2]
[366473166,1750276429713,208.83968552,0.00024657,120]
[366473167,1750276438599,331.29,0.00018249,2]
[366473168,1750276467622,24900.0,0.00019024,2]
[366473169,1750276517955,327.07,0.00018262,2]
[366473170,1750276563802,2131.2766115,0.00019024,2]
[366473171,1750276600430,322.91,0.00018264,2]
[366473173,1750276647204,4789.99451916,0.0001911,2]
[366473174,1750276681012,343.25,0.00018251,2]
[366473175,1750276765341,393.35,0.00018266,2]
[366473176,1750276790065,228.52855703,0.00018583,2]
[366473177,1750276790095,186.35635837,0.00019076,2]
[366473178,1750276845025,2883.1616931,0.00016,2]
[366473179,1750276846051,388.35,0.00018262,2]
[366473183,1750276888343,186.35635837,0.00019056,2]
[366473184,1750276901601,-776.7,0.00019132,2]
[366473185,1750276901629,-300.0,0.00019156,2]
[366473186,1750276901657,-300.0,0.00019156,2]
[366473187,1750276901682,-5000.0,0.00019157,2]
[366473188,1750276901712,-500.0,0.00019157,2]
[366473189,1750276901737,-500.0,0.00019157,2]
[366473190,1750276901763,-500.0,0.00019157,2]
[366473191,1750276901789,-123.3,0.00019176,2]
[366473193,1750276926893,373.52,0.00018254,2]
[366473194,1750277010668,415.37,0.00018249,2]
[366473195,1750277013920,-171.0559228,0.00019118,2]
[366473196,1750277092108,407.9,0.00018274,2]
[366473197,1750277114040,2500.0,0.00022,30]
[366473198,1750277128854,2500.0,0.0001911,2]
[366473199,1750277161561,666.0,0.00019078,2]
[366473200,1750277172934,402.71,0.00018265,2]
[366473207,1750277247626,-100000.0,0.00025222,30]
[366473208,1750277247654,-61375.0,0.00025222,30]
[366473209,1750277247680,-2270.0,0.00025222,30]
[366473210,1750277247706,-2000.0,0.00025222,30]
[366473211,1750277247736,-2000.0,0.00025222,30]
[366473212,1750277247762,-2000.0,0.00025222,30]
[366473213,1750277247787,-2000.0,0.00025222,30]
[366473214,1750277247813,-2000.0,0.00025222,30]
[366473215,1750277247838,-1837.74463052,0.00025222,30]
[366473216,1750277247863,-1505.53962867,0.00025222,30]
[366473217,1750277247888,-100000.0,0.00025222,30]
[366473218,1750277247913,-1112.1483823,0.00025222,35]
[366473219,1750277247938,-236261.70320683,0.00025222,32]
[366473220,1750277247962,-625.1463956,0.00025222,35]
[366473221,1750277247988,-1304.022799,0.00025222,35]
[366473222,1750277248014,-1488.92099715,0.00025222,30]
[366473223,1750277248039,-1243.73922361,0.00025222,32]
[366473224,1750277248065,-649.53267977,0.00025222,30]
[366473225,1750277248091,-616.1661984,0.00025222,35]
[366473226,1750277248118,-496.4585471,0.00025222,35]
[366473227,1750277248144,-581.7376181,0.00025222,35]
[366473228,1750277248332,-796.73238899,0.00025222,32]
[366473229,1750277248359,-27850.16192881,0.00025222,30]
[366473230,1750277248385,-3690.63664262,0.00025222,30]
[366473231,1750277248411,-1277.408663,0.00025222,35]
[366473232,1750277248437,-7574.34,0.00025222,60]
[366473233,1750277248464,-2000.0,0.00025222,30]
[366473234,1750277248490,-2000.0,0.00025222,30]
[366473235,1750277248517,-2000.0,0.00025222,30]
[366473236,1750277248543,-2000.0,0.00025222,30]
[366473237,1750277248568,-2000.0,0.00025222,30]
[366473238,1750277248593,-28457.80003435,0.00025222,35]
[366473239,1750277248618,-332.02895993,0.00025222,30]
[366473240,1750277248643,-2000.0,0.00025222,30]
[366473241,1750277248667,-2000.0,0.00025222,30]
[366473242,1750277248692,-620.49144943,0.00025222,35]
[366473243,1750277248720,-8039.15,0.00025222,60]
[366473244,1750277248744,-1000000.0,0.00025222,30]
[366473245,1750277248772,-990212.96258422,0.00025222,30]
[366473246,1750277248798,-2395780.4270416,0.00025222,60]
[366473247,1750277254872,1073.621981,0.00018856,2]
[366473248,1750277255240,397.59,0.00018256,2]
[366473249,1750277281433,-5000000.0,0.00025222,60]
[366473250,1750277289753,-404276.6129584,0.00025222,60]
[366473251,1750277289779,-1417.82500261,0.00025222,30]
[366473252,1750277289804,-60083.0,0.00025222,35]
[366473253,1750277289828,-2000.0,0.00025222,30]
[366473254,1750277289855,-2000.0,0.00025222,30]
[366473255,1750277289880,-2000.0,0.00025222,30]
[366473256,1750277289904,-513.799999,0.00025222,30]
[366473257,1750277289928,-513.799999,0.00025222,30]
[366473258,1750277289952,-513.799999,0.00025222,30]
[366473259,1750277289976,-500.0,0.00025222,30]
[366473260,1750277290000,-500.0,0.00025222,30]
[366473261,1750277290026,-500.0,0.00025222,30]
[366473262,1750277290049,-500.0,0.00025222,30]
[366473263,1750277290076,-500.0,0.00025222,30]
[366473264,1750277290100,-500.0,0.00025222,30]
[366473265,1750277290124,-500.0,0.00025222,30]
[366473266,1750277290148,-500.0,0.00025222,30]
[366473267,1750277290171,-500.0,0.00025222,30]
[366473268,1750277290196,-500.0,0.00025222,30]
[366473269,1750277290221,-500.0,0.00025222,30]
[366473270,1750277290247,-500.0,0.00025222,30]
[366473271,1750277290271,-500.0,0.00025222,30]
[366473272,1750277290448,-500.0,0.00025222,30]
[366473273,1750277290474,-500.0,0.00025222,30]
[366473274,1750277290499,-500.0,0.00025222,30]
[366473275,1750277290524,-500.0,0.00025222,30]
[366473276,1750277290547,-500.0,0.00025222,30]
[366473277,1750277290571,-500.0,0.00025222,30]
[366473278,1750277290596,-500.0,0.00025222,30]
[366473279,1750277290620,-500.0,0.00025222,30]
[366473280,1750277290644,-500.0,0.00025222,30]
[366473281,1750277290668,-474.24194932,0.00025222,30]
[366473282,1750277314144,-375180.74654557,0.00024,30]
[366473283,1750277314170,-1499.999999,0.00024,30]
[366473284,1750277314195,-302316.11278885,0.00024,30]
[366473285,1750277314227,-315.48910325,0.00024,30]
[366473286,1750277314276,-200.0,0.00024968,120]
[366473287,1750277314302,-600.0,0.00025,120]
[366473288,1750277314343,-13405.0781,0.00025,30]
[366473289,1750277314367,-10134.45,0.00025,30]
[366473290,1750277314392,-160.0,0.00025,30]
[366473291,1750277314416,-835.98428123,0.00025,30]
[366473292,1750277314440,-424.70586748,0.00025,30]
[366473293,1750277314468,-230.29,0.00025,31]
[366473294,1750277314496,-230.29,0.00025,31]
[366473295,1750277314527,-230.29,0.00025,31]
[366473296,1750277314556,-230.29,0.00025,31]
[366473297,1750277314584,-230.29,0.00025,31]
[366473298,1750277314614,-230.29,0.00025,31]
[366473299,1750277314644,-230.29,0.00025,31]
[366473300,1750277314671,-230.29,0.00025,31]
[366473301,1750277314698,-230.29,0.00025,31]
[366473302,1750277314723,-230.29,0.00025,31]
[366473303,1750277314754,-230.29,0.00025,31]
[366473304,1750277314782,-230.29,0.00025,31]
[366473305,1750277314809,-230.29,0.00025,31]
[366473306,1750277314837,-230.29,0.00025,31]
[366473307,1750277314865,-230.29,0.00025,31]
[366473308,1750277314893,-230.29,0.00025,31]
[366473309,1750277314918,-200.0,0.00025068,120]